[Event "Allsvenskan Div II 5 2023/2024: SS Manhem IV - Gotaverken-Lundby SK"]
[Site "Goteborgs schackcentrum, Vegatan 20, Gothenburg, Sweden"]
[Date "2023.10.22"]
[Round "1.1"]
[White "Sjolander, Anders"]
[Black "Ottgard, Andreas"]
[Result "1/2-1/2"]
[TimeControl "90 minutes for 40 moves + 30 minutes for the rest of the game + 30 seconds per move from move one."]
[WhiteFideId "1711903"]
[BlackFideId "1730592"]
[WhiteElo "1964"]
[BlackElo "1876"]

1. d4 {[%clk 01:30:28]} {[%emt 00:00:32]} Nf6 {[%clk 01:30:53]} {[%emt
00:00:09]} 2. Bg5 {[%clk 01:30:52]} {[%emt 00:00:05]} c5 {[%clk 01:30:45]}
{[%emt 00:00:37]} 3. d5 {[%clk 01:31:04]} {[%emt 00:00:19]} Qb6 {[%clk
01:30:53]} {[%emt 00:00:22]} 4. Nc3 {[%clk 01:31:25]} {[%emt 00:00:09]} Qxb2
{[%clk 01:31:13]} {[%emt 00:00:10]} 5. Bd2 {[%clk 01:31:48]} {[%emt 00:00:06]}
Qb6 {[%clk 01:31:37]} {[%emt 00:00:06]} 6. e4 {[%clk 01:32:09]} {[%emt
00:00:10]} d6 {[%clk 01:31:47]} {[%emt 00:00:20]} 7. f4 {[%clk 01:32:18]}
{[%emt 00:00:20]} e6 {[%clk 01:31:46]} {[%emt 00:00:31]} 8. Rb1 {[%clk
01:31:43]} {[%emt 00:01:06]} Qd8 {[%clk 01:31:29]} {[%emt 00:00:47]} 9. Bb5+
{[%clk 01:29:01]} {[%emt 00:03:12]} Bd7 {[%clk 01:31:29]} {[%emt 00:00:30]} 10.
dxe6 {[%clk 01:26:44]} {[%emt 00:02:47]} fxe6 {[%clk 01:31:48]} {[%emt
00:00:10]} 11. e5 {[%clk 01:18:56]} {[%emt 00:08:19]} dxe5 {[%clk 01:31:53]}
{[%emt 00:00:25]} 12. fxe5 {[%clk 01:19:08]} {[%emt 00:00:18]} Nd5 {[%clk
01:31:51]} {[%emt 00:00:32]} 13. Qg4 {[%clk 00:48:40]} {[%emt 00:30:58]} Nxc3
{[%clk 01:31:07]} {[%emt 00:01:14]} 14. Bxc3 {[%clk 00:48:30]} {[%emt
00:00:40]} Bxb5 {[%clk 01:28:27]} {[%emt 00:03:10]} 15. Qxe6+ {[%clk 00:35:10]}
{[%emt 00:13:50]} Qe7 {[%clk 01:28:36]} {[%emt 00:00:21]} 16. Qc8+ {[%clk
00:26:10]} {[%emt 00:09:30]} Qd8 {[%clk 01:28:39]} {[%emt 00:00:26]} 17. Qe6+
{[%clk 00:16:07]} {[%emt 00:10:33]} Qe7 {[%clk 01:28:47]} {[%emt 00:00:22]} 18.
Qc8+ {[%clk 00:16:31]} {[%emt 00:00:07]} Qd8 {[%clk 01:29:09]} {[%emt
00:00:08]} 19. Qxd8+ Kxd8 20. Rxb5 {[%emt 00:00:02]} b6 {[%emt 00:00:01]} 21.
Nh3 {[%emt 00:00:17]} Be7 {[%emt 00:00:07]} 1/2-1/2

[Event "Allsvenskan Div II 5 2023/2024: SS Manhem IV - Gotaverken-Lundby SK"]
[Site "Goteborgs schackcentrum, Vegatan 20, Gothenburg, Sweden"]
[Date "2023.10.22"]
[Round "1.2"]
[White "Torkkeli, Ted"]
[Black "Persson, Lars"]
[Result "1-0"]
[TimeControl "90 minutes for 40 moves + 30 minutes for the rest of the game + 30 seconds per move from move one."]
[WhiteFideId "1737724"]
[BlackFideId "1738909"]
[WhiteElo "1777"]
[BlackElo "1797"]

1. e4 {[%clk 01:30:57]} {[%emt 00:00:03]} e6 {[%clk 01:30:48]} {[%emt
00:00:12]} 2. d4 {[%clk 01:31:18]} {[%emt 00:00:10]} d5 {[%clk 01:31:12]}
{[%emt 00:00:05]} 3. Nd2 {[%clk 01:31:31]} {[%emt 00:00:17]} Nf6 {[%clk
01:31:05]} {[%emt 00:00:37]} 4. Bd3 {[%clk 01:31:31]} {[%emt 00:00:30]} c5
{[%clk 01:30:24]} {[%emt 00:01:11]} 5. c3 {[%clk 01:31:43]} {[%emt 00:00:18]}
Nc6 {[%clk 01:30:38]} {[%emt 00:00:16]} 6. e5 {[%clk 01:31:47]} {[%emt
00:00:26]} Nd7 {[%clk 01:31:02]} {[%emt 00:00:06]} 7. Ne2 {[%clk 01:32:01]}
{[%emt 00:00:16]} cxd4 {[%clk 01:30:31]} {[%emt 00:01:01]} 8. cxd4 {[%clk
01:32:22]} {[%emt 00:00:10]} f5 {[%emt 00:01:14]} 9. exf6 {[%clk 01:32:38]}
Nxf6 {[%clk 01:30:27]} {[%emt 00:00:03]} 10. O-O {[%clk 01:32:38]} {[%emt
00:00:29]} Bd6 {[%clk 01:30:39]} {[%emt 00:00:18]} 11. Nf3 {[%clk 01:31:54]}
{[%emt 00:01:14]} O-O {[%clk 01:28:35]} {[%emt 00:02:34]} 12. Bg5 {[%clk
01:30:38]} {[%emt 00:01:47]} Bd7 {[%clk 01:24:50]} {[%emt 00:04:14]} 13. Ng3
{[%clk 01:28:08]} {[%emt 00:03:00]} h6 {[%clk 01:19:37]} {[%emt 00:05:44]} 14.
Bxf6 {[%clk 01:27:02]} {[%emt 00:01:36]} Qxf6 {[%clk 01:18:45]} {[%emt
00:01:22]} 15. Rc1 {[%clk 01:20:06]} {[%emt 00:07:25]} e5 {[%clk 01:12:36]}
{[%emt 00:06:39]} 16. dxe5 {[%clk 01:18:08]} {[%emt 00:02:28]} Nxe5 {[%clk
01:12:34]} {[%emt 00:00:32]} 17. Nxe5 {[%clk 01:18:04]} {[%emt 00:00:34]} Bxe5
{[%clk 01:12:37]} {[%emt 00:00:27]} 18. b3 {[%clk 01:13:32]} {[%emt 00:05:02]}
Bxg3 {[%clk 01:08:00]} {[%emt 00:05:07]} 19. hxg3 {[%clk 01:11:13]} {[%emt
00:02:49]} Rac8 {[%clk 01:04:28]} {[%emt 00:04:02]} 20. Bc2 {[%clk 01:08:02]}
{[%emt 00:03:41]} Qd6 {[%clk 00:55:15]} {[%emt 00:09:43]} 21. Qd4 {[%clk
01:01:53]} {[%emt 00:06:39]} b6 {[%clk 00:47:43]} {[%emt 00:08:02]} 22. Rfd1
{[%clk 00:54:37]} {[%emt 00:07:46]} Bf5 {[%clk 00:41:48]} {[%emt 00:06:25]} 23.
Bxf5 {[%clk 00:53:58]} {[%emt 00:01:09]} Rxc1 {[%clk 00:41:58]} {[%emt
00:00:20]} 24. Rxc1 {[%clk 00:54:22]} {[%emt 00:00:06]} Rxf5 {[%clk 00:42:11]}
{[%emt 00:00:18]} 25. Rd1 {[%clk 00:46:41]} {[%emt 00:08:11]} Qc5 {[%clk
00:33:08]} {[%emt 00:09:33]} 26. g4 {[%clk 00:44:43]} {[%emt 00:02:28]} Qxd4
{[%clk 00:30:51]} {[%emt 00:02:47]} 27. Rxd4 {[%clk 00:45:01]} {[%emt
00:00:11]} Re5 {[%clk 00:29:05]} {[%emt 00:02:16]} 28. Kf1 {[%clk 00:44:08]}
{[%emt 00:01:22]} Kf7 {[%clk 00:27:14]} {[%emt 00:02:22]} 29. f4 {[%clk
00:40:42]} {[%emt 00:03:56]} Re4 {[%clk 00:26:35]} {[%emt 00:01:09]} 30. Rxe4
{[%clk 00:40:40]} {[%emt 00:00:32]} dxe4 {[%clk 00:26:58]} {[%emt 00:00:07]} 31.
Ke2 {[%clk 00:40:42]} {[%emt 00:00:28]} Ke6 {[%clk 00:27:01]} {[%emt 00:00:27]}
32. Ke3 {[%clk 00:38:21]} {[%emt 00:02:51]} Kd5 {[%clk 00:26:34]} {[%emt
00:00:56]} 33. a4 {[%clk 00:32:22]} {[%emt 00:06:30]} a5 {[%clk 00:24:16]}
{[%emt 00:02:47]} 34. g3 {[%clk 00:32:31]} {[%emt 00:00:22]} g6 {[%clk
00:23:21]} {[%emt 00:01:25]} 35. f5 {[%clk 00:32:18]} {[%emt 00:00:44]} Ke5
{[%clk 00:14:45]} {[%emt 00:09:05]} 36. fxg6 {[%clk 00:30:13]} {[%emt
00:02:35]} Kf6 {[%clk 00:14:38]} {[%emt 00:00:36]} 37. g7 {[%clk 00:30:28]}
{[%emt 00:00:16]} Kxg7 {[%clk 00:15:03]} {[%emt 00:00:05]} 38. Kxe4 {[%clk
00:30:49]} {[%emt 00:00:09]} Kf6 {[%clk 00:14:19]} {[%emt 00:01:14]} 39. Kd5
{[%clk 00:30:29]} {[%emt 00:00:50]} Kg5 {[%clk 00:13:59]} {[%emt 00:00:50]} 40.
Kc6 {[%clk 00:30:45]} {[%emt 00:00:14]} Kxg4 {[%clk 00:14:23]} {[%emt
00:00:06]} 41. Kxb6 {[%clk 00:31:07]} {[%emt 00:00:08]} Kxg3 {[%clk 00:14:37]}
{[%emt 00:00:16]} 42. Kxa5 {[%clk 00:31:11]} {[%emt 00:00:26]} h5 {[%clk
00:14:31]} {[%emt 00:00:36]} 43. b4 {[%clk 00:31:30]} {[%emt 00:00:10]} h4
{[%clk 00:14:55]} {[%emt 00:00:07]} 44. b5 {[%clk 00:31:53]} {[%emt 00:00:06]}
h3 {[%clk 00:15:18]} {[%emt 00:00:08]} 45. b6 {[%clk 00:32:12]} {[%emt
00:00:11]} h2 {[%clk 00:15:41]} {[%emt 00:00:07]} 46. b7 {[%clk 00:32:31]}
{[%emt 00:00:11]} h1=Q {[%clk 00:16:04]} {[%emt 00:00:08]} 47. b8=Q+ {[%clk
00:32:50]} {[%emt 00:00:10]} Kg4 {[%clk 00:11:07]} {[%emt 00:05:27]} 48. Qg8+
{[%clk 00:30:36]} {[%emt 00:02:43]} Kf4 {[%clk 00:08:40]} {[%emt 00:02:58]} 49.
Qc4+ {[%clk 00:29:14]} {[%emt 00:01:52]} Ke5 {[%clk 00:05:40]} {[%emt
00:03:30]} 50. Kb6 {[%clk 00:28:17]} {[%emt 00:01:26]} Kd6 {[%clk 00:00:55]}
{[%emt 00:05:16]} 51. Qc7 {[%clk 00:27:48]} {[%emt 00:00:58]} 1-0

[Event "Allsvenskan Div II 5 2023/2024: SS Manhem IV - Gotaverken-Lundby SK"]
[Site "Goteborgs schackcentrum, Vegatan 20, Gothenburg, Sweden"]
[Date "2023.10.22"]
[Round "1.3"]
[White "Andersson, Stig"]
[Black "Tobiasson, Bjorn"]
[Result "1/2-1/2"]
[TimeControl "90 minutes for 40 moves + 30 minutes for the rest of the game + 30 seconds per move from move one."]
[WhiteFideId "1731971"]
[BlackFideId "1773682"]
[WhiteElo "1772"]
[BlackElo "1802"]

1. e4 {[%clk 01:30:45]} {[%emt 00:00:14]} c6 {[%clk 01:30:53]} {[%emt
00:00:08]} 2. g3 {[%clk 01:23:39]} {[%emt 00:07:37]} d5 {[%clk 01:30:31]}
{[%emt 00:00:50]} 3. Bg2 {[%clk 01:23:34]} {[%emt 00:00:36]} dxe4 {[%clk
01:30:26]} {[%emt 00:00:35]} 4. Bxe4 {[%clk 01:23:48]} {[%emt 00:00:15]} Nf6
{[%clk 01:30:39]} {[%emt 00:00:17]} 5. Bg2 {[%clk 01:23:42]} {[%emt 00:00:36]}
Bg4 {[%clk 01:30:34]} {[%emt 00:00:36]} 6. Ne2 {[%clk 01:23:07]} {[%emt
00:01:04]} e5 {[%clk 01:24:24]} {[%emt 00:06:40]} 7. d3 {[%clk 01:22:07]}
{[%emt 00:01:30]} Bc5 {[%clk 01:18:10]} {[%emt 00:06:44]} 8. O-O {[%clk
01:21:14]} {[%emt 00:01:23]} Nbd7 {[%clk 01:07:46]} {[%emt 00:10:54]} 9. Qe1
{[%clk 01:19:59]} {[%emt 00:01:46]} Qc7 {[%clk 01:01:47]} {[%emt 00:06:28]} 10.
Nd2 {[%clk 01:17:38]} {[%emt 00:02:52]} O-O {[%clk 01:01:11]} {[%emt 00:01:06]}
11. Nc4 {[%clk 01:13:23]} {[%emt 00:04:45]} Nd5 {[%clk 00:55:24]} {[%emt
00:06:16]} 12. Nc3 {[%clk 01:07:08]} {[%emt 00:06:45]} Nb4 {[%clk 00:46:17]}
{[%emt 00:09:38]} 13. Qd2 {[%clk 01:05:48]} {[%emt 00:01:50]} Nf6 {[%clk
00:46:20]} {[%emt 00:00:27]} 14. Ne3 {[%clk 01:03:15]} {[%emt 00:03:02]} Be6
{[%clk 00:42:08]} {[%emt 00:04:42]} 15. a3 {[%clk 01:03:29]} {[%emt 00:00:17]}
Nbd5 {[%clk 00:42:27]} {[%emt 00:00:11]} 16. Ne4 {[%clk 01:02:02]} {[%emt
00:01:57]} Nxe4 {[%clk 00:42:36]} {[%emt 00:00:21]} 17. dxe4 {[%clk 01:01:42]}
{[%emt 00:00:50]} Nxe3 {[%clk 00:42:31]} {[%emt 00:00:35]} 18. fxe3 {[%clk
01:01:59]} {[%emt 00:00:13]} Rad8 {[%clk 00:42:06]} {[%emt 00:00:55]} 19. Qc3
{[%clk 01:01:53]} {[%emt 00:00:35]} Bb6 {[%clk 00:39:35]} {[%emt 00:03:02]} 20.
b3 {[%clk 01:00:22]} {[%emt 00:02:00]} Rd7 {[%clk 00:38:46]} {[%emt 00:01:20]}
21. Bb2 {[%clk 00:59:36]} {[%emt 00:01:15]} f6 {[%clk 00:39:01]} {[%emt
00:00:15]} 22. Bf3 {[%clk 00:58:43]} {[%emt 00:01:23]} Rfd8 {[%clk 00:38:29]}
{[%emt 00:01:03]} 23. Rfd1 {[%clk 00:59:01]} {[%emt 00:00:12]} Rxd1+ {[%clk
00:34:16]} {[%emt 00:04:43]} 24. Rxd1 {[%clk 00:56:59]} {[%emt 00:02:31]} Rxd1+
{[%clk 00:34:40]} {[%emt 00:00:07]} 25. Bxd1 {[%clk 00:57:14]} {[%emt
00:00:15]} Qd6 {[%clk 00:34:53]} {[%emt 00:00:16]} 26. Be2 {[%clk 00:56:40]}
{[%emt 00:01:04]} Qc5 {[%clk 00:33:48]} {[%emt 00:01:36]} 27. Kf2 {[%clk
00:55:43]} {[%emt 00:01:26]} Qxc3 {[%clk 00:34:05]} {[%emt 00:00:14]} 28. Bxc3
{[%clk 00:56:03]} {[%emt 00:00:09]} Kf7 {[%clk 00:33:23]} {[%emt 00:01:13]} 29.
a4 {[%clk 00:56:02]} {[%emt 00:00:31]} a6 {[%clk 00:33:17]} {[%emt 00:00:36]}
30. Bb4 {[%clk 00:56:18]} {[%emt 00:00:13]} Bd8 {[%clk 00:28:09]} {[%emt
00:05:38]} 31. Kf3 {[%clk 00:55:22]} {[%emt 00:01:26]} Be7 {[%clk 00:28:29]}
{[%emt 00:00:11]} 32. Bd2 {[%clk 00:53:13]} {[%emt 00:02:39]} Ba3 {[%clk
00:27:05]} {[%emt 00:01:53]} 33. c4 {[%clk 00:52:21]} {[%emt 00:01:23]} Ke7
{[%clk 00:25:14]} {[%emt 00:02:20]} 34. g4 {[%clk 00:48:07]} {[%emt 00:04:44]}
Kd6 {[%clk 00:25:17]} {[%emt 00:00:28]} 35. h4 {[%clk 00:47:56]} {[%emt
00:00:40]} h6 {[%clk 00:24:47]} {[%emt 00:01:01]} 36. Kf2 {[%clk 00:44:09]}
{[%emt 00:04:17]} Kc5 {[%clk 00:19:19]} {[%emt 00:05:58]} 37. Bd1 {[%clk
00:39:04]} {[%emt 00:05:35]} Bb4 {[%clk 00:18:59]} {[%emt 00:00:50]} 38. Bc1
{[%clk 00:39:15]} {[%emt 00:00:19]} b5 {[%clk 00:16:24]} {[%emt 00:03:05]} 39.
axb5 {[%clk 00:36:38]} {[%emt 00:03:07]} cxb5 {[%clk 00:16:32]} {[%emt
00:00:21]} 40. cxb5 {[%clk 00:32:49]} {[%emt 00:04:20]} axb5 {[%clk 00:17:01]}
{[%emt 00:00:01]} 41. Bb2 {[%clk 00:32:07]} {[%emt 00:01:11]} Bd2 {[%clk
00:14:02]} {[%emt 00:03:29]} 42. Ba3+ {[%clk 00:31:57]} {[%emt 00:00:41]} b4
{[%clk 00:14:05]} {[%emt 00:00:27]} 43. Bb2 {[%clk 00:32:13]} {[%emt 00:00:14]}
Bc3 {[%clk 00:14:21]} {[%emt 00:00:14]} 44. Bc1 {[%clk 00:32:18]} {[%emt
00:00:25]} Kd6 {[%clk 00:11:10]} {[%emt 00:03:41]} 45. h5 {[%clk 00:27:05]}
{[%emt 00:05:42]} Ke7 {[%clk 00:11:00]} {[%emt 00:00:41]} 46. Kf3 {[%clk
00:25:13]} {[%emt 00:02:22]} Kf7 {[%clk 00:10:50]} {[%emt 00:00:40]} 47. Bc2
{[%clk 00:24:45]} {[%emt 00:00:57]} g6 {[%clk 00:10:26]} {[%emt 00:00:54]} 48.
Kg3 {[%clk 00:24:04]} {[%emt 00:01:12]} Kg7 {[%clk 00:09:50]} {[%emt 00:01:06]}
49. Kf3 {[%clk 00:22:43]} {[%emt 00:01:50]} Bf7 {[%clk 00:09:54]} {[%emt
00:00:27]} 50. hxg6 {[%clk 00:20:43]} {[%emt 00:02:30]} Kxg6 {[%clk 00:10:13]}
{[%emt 00:00:11]} 51. Bd1 {[%clk 00:18:26]} {[%emt 00:02:46]} Kg5 {[%clk
00:10:25]} {[%emt 00:00:19]} 52. Kg3 {[%clk 00:17:48]} {[%emt 00:01:08]} Be6
{[%clk 00:10:36]} {[%emt 00:00:18]} 53. Bc2 {[%clk 00:17:22]} {[%emt 00:00:56]}
Bxg4 {[%clk 00:10:17]} {[%emt 00:00:50]} 54. Bd3 {[%clk 00:17:39]} {[%emt
00:00:13]} h5 {[%clk 00:08:47]} {[%emt 00:02:00]} 55. Bc4 {[%clk 00:16:30]}
{[%emt 00:01:39]} h4+ {[%clk 00:09:04]} {[%emt 00:00:11]} 56. Kf2 {[%clk
00:15:02]} {[%emt 00:02:00]} Bd7 {[%clk 00:30:20]} {[%emt 00:09:14]} 57. Kf3
{[%clk 00:37:34]} {[%emt 00:07:57]} h3 {[%clk 00:27:26]} {[%emt 00:03:25]} 58.
Kg3 {[%clk 00:36:42]} {[%emt 00:01:21]} Be1+ {[%clk 00:26:25]} {[%emt
00:01:32]} 59. Kh2 {[%clk 00:36:35]} {[%emt 00:00:36]} Kh4 {[%clk 00:26:27]}
{[%emt 00:00:29]} 60. Be2 {[%clk 00:32:40]} {[%emt 00:04:24]} Bg4 {[%clk
00:25:38]} {[%emt 00:01:19]} 61. Bf1 {[%clk 00:32:53]} {[%emt 00:00:17]} Bg3+
{[%clk 00:25:30]} {[%emt 00:00:38]} 62. Kg1 {[%clk 00:33:06]} {[%emt 00:00:17]}
h2+ {[%clk 00:25:43]} {[%emt 00:00:17]} 63. Kh1 {[%clk 00:33:02]} {[%emt
00:00:35]} Bf3+ {[%clk 00:19:00]} {[%emt 00:07:13]} 64. Bg2 {[%clk 00:32:57]}
{[%emt 00:00:35]} Bd1 {[%clk 00:19:16]} {[%emt 00:00:14]} 65. Bd2 {[%clk
00:33:09]} {[%emt 00:00:18]} Bxb3 {[%clk 00:19:27]} {[%emt 00:00:19]} 66. Bxb4
{[%clk 00:33:28]} {[%emt 00:00:11]} Bd1 {[%clk 00:16:05]} {[%emt 00:03:51]} 67.
Be7 {[%clk 00:28:54]} {[%emt 00:05:04]} Kg5 {[%clk 00:16:06]} {[%emt 00:00:30]}
68. Bd8 {[%clk 00:28:12]} {[%emt 00:01:12]} Bf2 {[%clk 00:13:29]} {[%emt
00:03:07]} 69. Kxh2 {[%clk 00:26:45]} {[%emt 00:01:56]} Bxe3 {[%clk 00:13:29]}
{[%emt 00:00:32]} 70. Kg3 {[%clk 00:26:48]} {[%emt 00:00:25]} Bf4+ {[%clk
00:13:39]} {[%emt 00:00:20]} 71. Kf2 {[%clk 00:26:56]} {[%emt 00:00:22]} Bc2
{[%clk 00:13:19]} {[%emt 00:00:51]} 72. Kf3 {[%clk 00:26:22]} {[%emt 00:01:04]}
Kg6 {[%clk 00:13:22]} {[%emt 00:00:26]} 73. Bh3 {[%clk 00:26:41]} {[%emt
00:00:12]} Bd1+ {[%clk 00:13:21]} {[%emt 00:00:30]} 74. Kf2 {[%clk 00:26:45]}
{[%emt 00:00:25]} Bg5 {[%clk 00:12:44]} {[%emt 00:01:07]} 75. Bf5+ {[%clk
00:26:46]} {[%emt 00:00:30]} Kf7 {[%clk 00:12:46]} {[%emt 00:00:29]} 76. Ba5
{[%clk 00:25:23]} {[%emt 00:01:51]} Bh5 {[%clk 00:13:05]} {[%emt 00:00:12]} 77.
Bb4 {[%clk 00:25:14]} {[%emt 00:00:38]} Bg6 {[%clk 00:13:27]} {[%emt 00:00:09]}
78. Bxg6+ {[%clk 00:25:14]} {[%emt 00:00:31]} Kxg6 {[%clk 00:13:55]} {[%emt
00:00:02]} 79. Kf3 {[%clk 00:24:52]} {[%emt 00:00:51]} f5 {[%clk 00:13:56]}
{[%emt 00:00:29]} 80. Bc3 {[%clk 00:23:01]} {[%emt 00:02:21]} Bf4 {[%clk
00:14:13]} {[%emt 00:00:14]} 81. Bxe5 {[%clk 00:20:18]} {[%emt 00:03:13]} Bxe5
{[%clk 00:14:29]} {[%emt 00:00:14]} 82. exf5+ {[%clk 00:20:33]} {[%emt
00:00:14]} Kxf5 {[%clk 00:14:58]} {[%emt 00:00:01]} 83. Kg3 {[%emt 00:00:30]}
1/2-1/2

[Event "Allsvenskan Div II 5 2023/2024: SS Manhem IV - Gotaverken-Lundby SK"]
[Site "Goteborgs schackcentrum, Vegatan 20, Gothenburg, Sweden"]
[Date "2023.10.22"]
[Round "1.4"]
[White "Kosmidis, Thomas"]
[Black "Wiklund, Robert"]
[Result "0-1"]
[TimeControl "90 minutes for 40 moves + 30 minutes for the rest of the game + 30 seconds per move from move one."]
[WhiteFideId "1753380"]
[BlackFideId "1709461"]
[WhiteElo "1729"]
[BlackElo "1783"]

1. d4 {[%clk 01:30:51]} {[%emt 00:00:08]} d5 {[%clk 01:30:27]} {[%emt
00:00:34]} 2. c4 {[%clk 01:30:59]} {[%emt 00:00:22]} e6 {[%clk 01:30:16]}
{[%emt 00:00:31]} 3. Nc3 {[%clk 01:30:47]} {[%emt 00:00:51]} c5 {[%emt
00:00:22]} 4. e3 {[%clk 01:28:16]} {[%emt 00:02:58]} Nf6 {[%clk 01:30:27]}
{[%emt 00:00:30]} 5. cxd5 {[%clk 01:28:00]} {[%emt 00:00:47]} Nxd5 {[%emt
00:00:34]} 6. Nf3 {[%clk 01:27:52]} {[%emt 00:00:35]} Nc6 {[%clk 01:28:26]}
{[%emt 00:02:30]} 7. a3 {[%clk 01:23:18]} {[%emt 00:05:03]} cxd4 {[%clk
01:25:26]} {[%emt 00:03:30]} 8. Nxd4 {[%clk 01:23:22]} {[%emt 00:00:26]} Nxc3
{[%clk 01:25:26]} {[%emt 00:00:31]} 9. bxc3 {[%clk 01:23:44]} {[%emt 00:00:08]}
Be7 {[%clk 01:23:26]} {[%emt 00:02:29]} 10. Be2 {[%clk 01:23:26]} {[%emt
00:00:48]} O-O {[%clk 01:20:25]} {[%emt 00:03:32]} 11. Nxc6 {[%clk 01:22:07]}
{[%emt 00:01:48]} Qxd1+ {[%clk 01:19:25]} {[%emt 00:01:30]} 12. Bxd1 {[%clk
01:22:29]} {[%emt 00:00:09]} bxc6 {[%clk 01:19:26]} {[%emt 00:00:28]} 13. Be2
{[%clk 01:15:40]} {[%emt 00:07:19]} Bf6 {[%clk 01:19:27]} {[%emt 00:00:29]} 14.
Bd2 {[%clk 01:15:05]} {[%emt 00:01:06]} Rb8 {[%clk 01:16:27]} {[%emt 00:03:30]}
15. Bf3 {[%clk 01:03:10]} {[%emt 00:12:25]} c5 {[%clk 01:06:27]} {[%emt
00:10:29]} 16. O-O {[%clk 00:58:32]} {[%emt 00:05:08]} Rd8 {[%clk 01:05:27]}
{[%emt 00:01:30]} 17. Rfd1 {[%clk 00:58:24]} {[%emt 00:00:38]} g5 {[%clk
01:03:24]} {[%emt 00:02:33]} 18. e4 {[%clk 00:52:51]} {[%emt 00:06:03]} Rb2
{[%clk 01:00:25]} {[%emt 00:03:29]} 19. Be3 {[%clk 00:51:00]} {[%emt 00:02:22]}
Rxd1+ {[%clk 00:59:26]} {[%emt 00:01:29]} 20. Rxd1 {[%clk 00:50:40]} {[%emt
00:00:49]} Be7 {[%clk 00:58:27]} {[%emt 00:01:29]} 21. h3 {[%clk 00:50:24]}
{[%emt 00:00:47]} Kg7 {[%clk 00:58:28]} {[%emt 00:00:29]} 22. c4 {[%clk
00:41:31]} {[%emt 00:09:23]} a5 {[%clk 00:55:21]} {[%emt 00:03:35]} 23. Bd2
{[%clk 00:41:00]} {[%emt 00:01:01]} Rc2 {[%clk 00:52:27]} {[%emt 00:03:24]} 24.
Bxa5 {[%clk 00:36:08]} {[%emt 00:05:23]} Rxc4 {[%clk 00:52:26]} {[%emt
00:00:31]} 25. Bd8 {[%clk 00:35:25]} {[%emt 00:01:13]} Bxd8 {[%clk 00:52:27]}
{[%emt 00:00:30]} 26. Rxd8 {[%clk 00:35:43]} {[%emt 00:00:11]} Bb7 {[%clk
00:52:27]} {[%emt 00:00:29]} 27. Rd7 {[%clk 00:32:22]} {[%emt 00:03:53]} Bxe4
{[%clk 00:52:27]} {[%emt 00:00:29]} 28. Bxe4 {[%clk 00:32:51]} {[%emt
00:00:02]} Rxe4 {[%clk 00:52:46]} {[%emt 00:00:10]} 29. Rc7 {[%clk 00:33:15]}
{[%emt 00:00:07]} Re1+ {[%clk 00:52:11]} {[%emt 00:01:05]} 30. Kh2 {[%clk
00:33:38]} {[%emt 00:00:07]} Rc1 {[%clk 00:52:31]} {[%emt 00:00:09]} 31. a4
{[%clk 00:33:56]} {[%emt 00:00:12]} h5 {[%emt 00:02:36]} 32. g4 {[%clk
00:32:47]} {[%emt 00:01:06]} h4 {[%clk 00:47:28]} {[%emt 00:04:01]} 33. a5
{[%clk 00:33:11]} {[%emt 00:00:06]} Kf6 {[%clk 00:45:27]} {[%emt 00:02:30]} 34.
a6 {[%clk 00:33:02]} {[%emt 00:00:39]} Ra1 {[%clk 00:44:05]} {[%emt 00:01:52]}
35. Rxc5 {[%clk 00:32:22]} {[%emt 00:01:10]} Rxa6 {[%clk 00:44:32]} {[%emt
00:00:04]} 36. Kg2 {[%clk 00:31:07]} {[%emt 00:01:44]} Ra4 {[%clk 00:40:38]}
{[%emt 00:04:24]} 37. Rc2 {[%clk 00:31:15]} {[%emt 00:00:21]} Ke5 {[%clk
00:40:22]} {[%emt 00:00:47]} 38. Rc5+ {[%clk 00:29:04]} {[%emt 00:02:42]} Kf4
{[%clk 00:40:24]} {[%emt 00:00:27]} 39. Rc3 {[%clk 00:28:31]} {[%emt 00:01:02]}
f5 {[%clk 00:39:50]} {[%emt 00:01:05]} 40. Rf3+ {[%clk 00:27:58]} {[%emt
00:01:03]} Ke5 {[%clk 00:40:09]} {[%emt 00:00:11]} 41. gxf5 {[%clk 00:27:29]}
{[%emt 00:00:59]} exf5 {[%clk 00:38:28]} {[%emt 00:02:10]} 42. Rb3 {[%clk
00:27:27]} {[%emt 00:00:32]} Re4 {[%clk 00:37:26]} {[%emt 00:01:32]} 43. Kf3
{[%clk 00:26:38]} {[%emt 00:01:19]} g4+ {[%clk 00:37:08]} {[%emt 00:00:49]} 44.
hxg4 {[%clk 00:27:01]} {[%emt 00:00:07]} fxg4+ {[%clk 00:37:32]} {[%emt
00:00:06]} 45. Kg2 {[%clk 00:27:10]} {[%emt 00:00:21]} Kf4 {[%clk 00:37:44]}
{[%emt 00:00:18]} 46. Rb8 {[%clk 00:25:08]} {[%emt 00:02:30]} h3+ {[%clk
00:37:48]} {[%emt 00:00:28]} 47. Kf1 {[%clk 00:25:25]} {[%emt 00:00:13]} Ra4
{[%clk 00:37:19]} {[%emt 00:00:58]} 48. Rf8+ {[%clk 00:25:32]} {[%emt
00:00:23]} Ke4 {[%clk 00:37:08]} {[%emt 00:00:41]} 49. Re8+ {[%clk 00:25:42]}
{[%emt 00:00:20]} Kf3 {[%clk 00:33:58]} {[%emt 00:03:40]} 50. Re3+ {[%clk
00:23:58]} {[%emt 00:02:15]} Kf4 {[%clk 00:34:15]} {[%emt 00:00:13]} 51. Re8
{[%clk 00:23:47]} {[%emt 00:00:40]} Ra1+ {[%clk 00:34:23]} {[%emt 00:00:22]} 52.
Ke2 {[%clk 00:24:15]} {[%emt 00:00:03]} h2 {[%clk 00:34:38]} 0-1